[Event "Titled Tuesday Blitz April 4 Early 2023"]
[White "Nugumanov, Bakhtiyar"]
[Black "Deuer, Marius"]
[WhiteFideId "13701797"]
[BlackFideId "16236432"]
[WhiteElo "2209"]
[BlackElo "2163"]
[Result "0-1"]
[Round "11"]
[TimeControl "180+2"]
[Date "2023.04.04"]
[WhiteClock "0:00:06"]
[BlackClock "0:00:09"]

1. Nf3 {[%clk 0:03:00]}  d5 {[%clk 0:02:33]} 2. g3 {[%clk 0:02:41]}  Nc6 {[%clk 0:02:16]} 3. d4 {[%clk 0:02:40]}  Nf6 {[%clk 0:02:16]} 4. Bg2 {[%clk 0:02:40]}  Bf5 {[%clk 0:02:16]} 5. O-O {[%clk 0:02:41]}  e6 {[%clk 0:02:13]} 6. c4 {[%clk 0:02:42]}  Be7 {[%clk 0:02:12]} 7. Nc3 {[%clk 0:02:37]}  Kf8 {[%clk 0:02:05]} 8. cxd5 {[%clk 0:02:36]}  exd5 {[%clk 0:02:03]} 9. Qb3 {[%clk 0:02:36]}  Rb8 {[%clk 0:01:58]} 10. Bf4 {[%clk 0:02:32]}  g6 {[%clk 0:01:50]} 11. Nb5 {[%clk 0:02:28]}  Ne8 {[%clk 0:01:40]} 12. Rac1 {[%clk 0:02:00]}  Nd6 {[%clk 0:01:35]} 13. Qxd5 {[%clk 0:01:53]}  Be6 {[%clk 0:01:25]} 14. Qc5 {[%clk 0:01:43]}  Nc4 {[%clk 0:01:16]} 15. Bxc7 {[%clk 0:01:31]}  Qd7 {[%clk 0:01:04]} 16. Ne5 {[%clk 0:00:46]}  N4xe5 {[%clk 0:00:52]} 17. Qc3 {[%clk 0:00:36]}  Rc8 {[%clk 0:00:27]} 18. dxe5 {[%clk 0:00:28]}  Rxc7 {[%clk 0:00:26]} 19. Nxc7 {[%clk 0:00:29]}  Qxc7 {[%clk 0:00:26]} 20. b4 {[%clk 0:00:20]}  a6 {[%clk 0:00:18]} 21. a4 {[%clk 0:00:18]}  Qb6 {[%clk 0:00:13]} 22. Bxc6 {[%clk 0:00:17]}  bxc6 {[%clk 0:00:07]} 23. Qxc6 {[%clk 0:00:18]}  Qxb4 {[%clk 0:00:07]} 24. Qxa6 {[%clk 0:00:18]}  Kg7 {[%clk 0:00:06]} 25. a5 {[%clk 0:00:16]}  Qg4 {[%clk 0:00:06]} 26. Rc3 {[%clk 0:00:14]}  Bd5 {[%clk 0:00:06]} 27. Qb5 {[%clk 0:00:10]}  Qe4 {[%clk 0:00:06]} 28. f3 {[%clk 0:00:09]}  Qd4+ {[%clk 0:00:07]} 29. Kg2 {[%clk 0:00:08]}  Qxc3 {[%clk 0:00:07]} 30. Qxd5 {[%clk 0:00:08]}  Qe3 {[%clk 0:00:06]} 31. Rd1 {[%clk 0:00:08]}  Rd8 {[%clk 0:00:06]} 32. Qxd8 {[%clk 0:00:07]}  Bxd8 {[%clk 0:00:07]} 33. Rxd8 {[%clk 0:00:07]}  Qxe2+ {[%clk 0:00:08]} 34. Kh3 {[%clk 0:00:07]}  Qxf3 {[%clk 0:00:07]} 35. a6 {[%clk 0:00:07]}  Qf5+ {[%clk 0:00:07]} 36. g4 {[%clk 0:00:06]}  Qf3+ {[%clk 0:00:07]} 37. Kh4 {[%clk 0:00:06]}  Qg2 {[%clk 0:00:06]} 38. Rd3 {[%clk 0:00:03]}  Qxh2+ {[%clk 0:00:06]} 39. Rh3 {[%clk 0:00:03]}  Qxe5 {[%clk 0:00:07]} 40. a7 {[%clk 0:00:02]}  Qe7+ {[%clk 0:00:05]} 41. Kg3 {[%clk 0:00:02]}  Qxa7 {[%clk 0:00:06]} 42. Kh4 {[%clk 0:00:02]}  Qd4 {[%clk 0:00:06]} 43. Rg3 {[%clk 0:00:02]}  Qf4 {[%clk 0:00:07]} 44. Rg2 {[%clk 0:00:01]}  g5+ {[%clk 0:00:07]} 45. Kh3 {[%clk 0:00:02]}  h5 {[%clk 0:00:07]} 46. Rg3 {[%clk 0:00:03]}  Kh6 {[%clk 0:00:07]} 47. gxh5 {[%clk 0:00:03]}  Kxh5 {[%clk 0:00:08]} 48. Kh2 {[%clk 0:00:03]}  f5 {[%clk 0:00:09]} 49. Kh3 {[%clk 0:00:03]}  g4+ {[%clk 0:00:08]} 50. Rxg4 {[%clk 0:00:03]}  fxg4+ {[%clk 0:00:08]} 51. Kg2 {[%clk 0:00:03]}  Kh4 {[%clk 0:00:08]} 52. Kg1 {[%clk 0:00:03]}  Qd2 {[%clk 0:00:08]} 53. Kh1 {[%clk 0:00:04]}  Qe2 {[%clk 0:00:08]} 54. Kg1 {[%clk 0:00:05]}  Kg3 {[%clk 0:00:09]} 55. Kh1 {[%clk 0:00:06]}  Qg2# {[%clk 0:00:09]} 0-1


[Site "https://www.chess.com"]

[Event "Titled Tuesday Blitz April 4 Early 2023"]
[White "Ai, Evan"]
[Black "Clawitter, Craig"]
[WhiteFideId "2094770"]
[BlackFideId "2023105"]
[WhiteElo "1963"]
[BlackElo "2234"]
[Result "0-1"]
[Round "11"]
[TimeControl "180+2"]
[Date "2023.04.04"]
[WhiteClock "0:00:01"]
[BlackClock "0:00:06"]

1. e4 {[%clk 0:03:00]}  e6 {[%clk 0:02:59]} 2. d4 {[%clk 0:03:01]}  d5 {[%clk 0:03:00]} 3. Nd2 {[%clk 0:03:01]}  Be7 {[%clk 0:02:59]} 4. Ngf3 {[%clk 0:03:01]}  Nf6 {[%clk 0:02:55]} 5. e5 {[%clk 0:03:00]}  Nfd7 {[%clk 0:02:56]} 6. Bd3 {[%clk 0:03:00]}  c5 {[%clk 0:02:57]} 7. c3 {[%clk 0:03:01]}  Nc6 {[%clk 0:02:57]} 8. O-O {[%clk 0:03:01]}  a5 {[%clk 0:02:58]} 9. a4 {[%clk 0:03:01]}  cxd4 {[%clk 0:02:57]} 10. cxd4 {[%clk 0:03:01]}  Nb4 {[%clk 0:02:57]} 11. Bb5 {[%clk 0:02:59]}  O-O {[%clk 0:02:57]} 12. Nb3 {[%clk 0:02:59]}  f6 {[%clk 0:02:49]} 13. exf6 {[%clk 0:02:52]}  Nxf6 {[%clk 0:02:43]} 14. Bf4 {[%clk 0:02:45]}  Bd7 {[%clk 0:02:36]} 15. Rc1 {[%clk 0:02:28]}  Bxb5 {[%clk 0:02:14]} 16. Bc7 {[%clk 0:02:25]}  Qe8 {[%clk 0:02:07]} 17. axb5 {[%clk 0:02:24]}  Qxb5 {[%clk 0:02:04]} 18. Ng5 {[%clk 0:02:03]}  Ra6 {[%clk 0:01:28]} 19. Nc5 {[%clk 0:01:27]}  Bxc5 {[%clk 0:01:17]} 20. Rxc5 {[%clk 0:01:28]}  Qd7 {[%clk 0:00:53]} 21. Bxa5 {[%clk 0:01:25]}  Nc6 {[%clk 0:00:53]} 22. Bd2 {[%clk 0:01:14]}  Nxd4 {[%clk 0:00:47]} 23. Bc3 {[%clk 0:00:50]}  Nf5 {[%clk 0:00:32]} 24. Nf3 {[%clk 0:00:35]}  Ne4 {[%clk 0:00:29]} 25. Ne5 {[%clk 0:00:31]}  Qd6 {[%clk 0:00:23]} 26. Rb5 {[%clk 0:00:09]}  Nxc3 {[%clk 0:00:21]} 27. bxc3 {[%clk 0:00:10]}  Qxe5 {[%clk 0:00:21]} 28. Rxb7 {[%clk 0:00:08]}  Rc6 {[%clk 0:00:18]} 29. Qg4 {[%clk 0:00:08]}  Rxc3 {[%clk 0:00:16]} 30. f4 {[%clk 0:00:08]}  Qd4+ {[%clk 0:00:14]} 31. Kh1 {[%clk 0:00:08]}  Ne3 {[%clk 0:00:13]} 32. Qxe6+ {[%clk 0:00:08]}  Kh8 {[%clk 0:00:13]} 33. Rg1 {[%clk 0:00:05]}  Qe4 {[%clk 0:00:12]} 34. Qd6 {[%clk 0:00:04]}  Rg8 {[%clk 0:00:09]} 35. Re7 {[%clk 0:00:03]}  Qd3 {[%clk 0:00:08]} 36. Qe5 {[%clk 0:00:03]}  d4 {[%clk 0:00:07]} 37. Rd7 {[%clk 0:00:03]}  Qe2 {[%clk 0:00:07]} 38. Rxd4 {[%clk 0:00:02]}  Rc1 {[%clk 0:00:07]} 39. Re4 {[%clk 0:00:01]}  Qxg2# {[%clk 0:00:06]} 0-1


[Site "https://www.chess.com"]

[Event "Titled Tuesday Blitz April 4 Early 2023"]
[White "dDobravcan"]
[Black "morozcoma"]
[WhiteElo "2156"]
[BlackElo "2285"]
[Result "0-1"]
[Round "11"]
[TimeControl "180+2"]
[Date "2023.04.04"]
[WhiteClock "0:00:03"]
[BlackClock "0:00:26"]

1. e4 {[%clk 0:03:00]}  e5 {[%clk 0:02:59]} 2. Nf3 {[%clk 0:03:00]}  Nc6 {[%clk 0:03:00]} 3. Bb5 {[%clk 0:02:58]}  a6 {[%clk 0:02:56]} 4. Bxc6 {[%clk 0:02:57]}  dxc6 {[%clk 0:02:55]} 5. O-O {[%clk 0:02:57]}  Bd6 {[%clk 0:02:50]} 6. d4 {[%clk 0:02:56]}  exd4 {[%clk 0:02:49]} 7. Qxd4 {[%clk 0:02:55]}  f6 {[%clk 0:02:45]} 8. Be3 {[%clk 0:02:42]}  Ne7 {[%clk 0:02:45]} 9. Nbd2 {[%clk 0:02:43]}  O-O {[%clk 0:02:44]} 10. e5 {[%clk 0:02:31]}  fxe5 {[%clk 0:02:34]} 11. Nxe5 {[%clk 0:02:28]}  Be6 {[%clk 0:02:29]} 12. Ndc4 {[%clk 0:02:15]}  Nf5 {[%clk 0:02:15]} 13. Qc3 {[%clk 0:02:14]}  Qh4 {[%clk 0:01:51]} 14. Nxd6 {[%clk 0:02:05]}  cxd6 {[%clk 0:01:50]} 15. Nf3 {[%clk 0:02:05]}  Qh5 {[%clk 0:01:45]} 16. Rfe1 {[%clk 0:01:53]}  Bd5 {[%clk 0:01:28]} 17. Nd2 {[%clk 0:01:21]}  Qg6 {[%clk 0:01:19]} 18. f3 {[%clk 0:01:11]}  Nh4 {[%clk 0:01:18]} 19. Re2 {[%clk 0:01:00]}  Rae8 {[%clk 0:00:47]} 20. Rae1 {[%clk 0:00:56]}  Bxf3 {[%clk 0:00:43]} 21. Nxf3 {[%clk 0:00:24]}  Nxf3+ {[%clk 0:00:36]} 22. Kh1 {[%clk 0:00:19]}  Nxe1 {[%clk 0:00:29]} 23. Qxe1 {[%clk 0:00:14]}  Re4 {[%clk 0:00:27]} 24. Bd2 {[%clk 0:00:08]}  Rfe8 {[%clk 0:00:27]} 25. Rxe4 {[%clk 0:00:07]}  Rxe4 {[%clk 0:00:28]} 26. Qf1 {[%clk 0:00:06]}  Qf7 {[%clk 0:00:26]} 27. Bc3 {[%clk 0:00:03]}  Qxf1# {[%clk 0:00:26]} 0-1


[Site "https://www.chess.com"]

[Event "Titled Tuesday Blitz April 4 Early 2023"]
[White "Necula, Iulian"]
[Black "Zampronha, Wladimir Camilo"]
[WhiteFideId "1232380"]
[BlackFideId "2103087"]
[WhiteElo "1790"]
[BlackElo "2176"]
[Result "0-1"]
[Round "11"]
[TimeControl "180+2"]
[Date "2023.04.04"]
[WhiteClock "0:00:09"]
[BlackClock "0:00:15"]

1. d4 {[%clk 0:03:00]}  Nf6 {[%clk 0:02:58]} 2. Nc3 {[%clk 0:03:01]}  d5 {[%clk 0:02:57]} 3. Bf4 {[%clk 0:03:01]}  a6 {[%clk 0:02:55]} 4. e3 {[%clk 0:03:01]}  e6 {[%clk 0:02:56]} 5. Nf3 {[%clk 0:03:00]}  c5 {[%clk 0:02:56]} 6. Ne5 {[%clk 0:02:57]}  Nc6 {[%clk 0:02:56]} 7. Nxc6 {[%clk 0:02:54]}  bxc6 {[%clk 0:02:56]} 8. Be2 {[%clk 0:02:53]}  Qb6 {[%clk 0:02:54]} 9. Na4 {[%clk 0:02:45]}  Qa5+ {[%clk 0:02:53]} 10. c3 {[%clk 0:02:45]}  c4 {[%clk 0:02:51]} 11. O-O {[%clk 0:02:33]}  Be7 {[%clk 0:02:47]} 12. b4 {[%clk 0:02:30]}  Qd8 {[%clk 0:02:43]} 13. Nc5 {[%clk 0:02:29]}  O-O {[%clk 0:02:41]} 14. a4 {[%clk 0:02:21]}  Nd7 {[%clk 0:02:37]} 15. f3 {[%clk 0:02:13]}  Bf6 {[%clk 0:02:27]} 16. e4 {[%clk 0:02:05]}  Re8 {[%clk 0:02:23]} 17. e5 {[%clk 0:02:03]}  Be7 {[%clk 0:02:23]} 18. g4 {[%clk 0:01:57]}  Bf8 {[%clk 0:02:19]} 19. Bg3 {[%clk 0:01:56]}  f6 {[%clk 0:02:15]} 20. f4 {[%clk 0:01:56]}  Nxc5 {[%clk 0:02:09]} 21. bxc5 {[%clk 0:01:55]}  Rb8 {[%clk 0:02:06]} 22. Qd2 {[%clk 0:01:53]}  Bd7 {[%clk 0:02:01]} 23. Rab1 {[%clk 0:01:52]}  Qa5 {[%clk 0:02:01]} 24. Qc2 {[%clk 0:01:48]}  fxe5 {[%clk 0:01:53]} 25. fxe5 {[%clk 0:01:48]}  Be7 {[%clk 0:01:51]} 26. h4 {[%clk 0:01:44]}  Rec8 {[%clk 0:01:28]} 27. g5 {[%clk 0:01:44]}  Be8 {[%clk 0:01:27]} 28. Bg4 {[%clk 0:01:42]}  Bd7 {[%clk 0:01:24]} 29. Rxb8 {[%clk 0:01:30]}  Rxb8 {[%clk 0:01:24]} 30. g6 {[%clk 0:00:55]}  h6 {[%clk 0:01:11]} 31. Rb1 {[%clk 0:00:54]}  Rxb1+ {[%clk 0:01:09]} 32. Qxb1 {[%clk 0:00:54]}  Qc7 {[%clk 0:00:59]} 33. Qb6 {[%clk 0:00:52]}  Qc8 {[%clk 0:00:55]} 34. a5 {[%clk 0:00:52]}  Bd8 {[%clk 0:00:55]} 35. Qb4 {[%clk 0:00:50]}  Qc7 {[%clk 0:00:53]} 36. Qb6 {[%clk 0:00:42]}  Qc8 {[%clk 0:00:53]} 37. Qb4 {[%clk 0:00:41]}  Bc7 {[%clk 0:00:52]} 38. Bd1 {[%clk 0:00:18]}  Qd8 {[%clk 0:00:50]} 39. Ba4 {[%clk 0:00:17]}  Bxa5 {[%clk 0:00:46]} 40. Qb7 {[%clk 0:00:17]}  Bxc3 {[%clk 0:00:43]} 41. Bxc6 {[%clk 0:00:16]}  Bxd4+ {[%clk 0:00:44]} 42. Kg2 {[%clk 0:00:15]}  Bxc6 {[%clk 0:00:28]} 43. Qxc6 {[%clk 0:00:16]}  c3 {[%clk 0:00:20]} 44. Qxe6+ {[%clk 0:00:15]}  Kh8 {[%clk 0:00:21]} 45. c6 {[%clk 0:00:15]}  Bb6 {[%clk 0:00:19]} 46. Bf4 {[%clk 0:00:14]}  Bc7 {[%clk 0:00:19]} 47. Qf7 {[%clk 0:00:13]}  c2 {[%clk 0:00:19]} 48. Bxh6 {[%clk 0:00:13]}  Qg8 {[%clk 0:00:17]} 49. Qxc7 {[%clk 0:00:10]}  gxh6 {[%clk 0:00:17]} 50. g7+ {[%clk 0:00:10]}  Qxg7+ {[%clk 0:00:16]} 51. Kh3 {[%clk 0:00:09]}  Qxc7 {[%clk 0:00:15]} 0-1


[Site "https://www.chess.com"]

[Event "Titled Tuesday Blitz April 4 Early 2023"]
[White "Reefat, Bin-Sattar"]
[Black "Ciuffoletti, Paolo"]
[WhiteFideId "10200207"]
[BlackFideId "807630"]
[WhiteElo "2462"]
[BlackElo "2143"]
[Result "1-0"]
[Round "11"]
[TimeControl "180+2"]
[Date "2023.04.04"]
[WhiteClock "0:01:05"]
[BlackClock "0:00:14"]

1. e4 {[%clk 0:03:00]}  c5 {[%clk 0:02:59]} 2. b3 {[%clk 0:03:00]}  d6 {[%clk 0:02:58]} 3. Bb2 {[%clk 0:02:59]}  Nf6 {[%clk 0:02:58]} 4. Bb5+ {[%clk 0:02:58]}  Nbd7 {[%clk 0:02:54]} 5. Qe2 {[%clk 0:02:56]}  g6 {[%clk 0:02:51]} 6. f4 {[%clk 0:02:55]}  Bg7 {[%clk 0:02:45]} 7. Nf3 {[%clk 0:02:56]}  O-O {[%clk 0:02:42]} 8. Ng1 {[%clk 0:02:57]}  a6 {[%clk 0:02:41]} 9. Bxd7 {[%clk 0:02:56]}  Bxd7 {[%clk 0:02:40]} 10. Nf3 {[%clk 0:02:56]}  Bc6 {[%clk 0:02:36]} 11. d3 {[%clk 0:02:55]}  Re8 {[%clk 0:02:23]} 12. O-O {[%clk 0:02:53]}  d5 {[%clk 0:02:13]} 13. Nbd2 {[%clk 0:02:42]}  dxe4 {[%clk 0:01:59]} 14. dxe4 {[%clk 0:02:39]}  Nxe4 {[%clk 0:01:47]} 15. Nxe4 {[%clk 0:02:37]}  Bxb2 {[%clk 0:01:46]} 16. Rad1 {[%clk 0:02:36]}  Qa5 {[%clk 0:01:40]} 17. c4 {[%clk 0:02:25]}  Bg7 {[%clk 0:01:36]} 18. f5 {[%clk 0:02:22]}  Rad8 {[%clk 0:01:29]} 19. fxg6 {[%clk 0:02:18]}  hxg6 {[%clk 0:01:27]} 20. Rxd8 {[%clk 0:02:17]}  Qxd8 {[%clk 0:01:15]} 21. h4 {[%clk 0:02:08]}  Bxe4 {[%clk 0:01:04]} 22. Qxe4 {[%clk 0:02:07]}  Qc7 {[%clk 0:01:01]} 23. h5 {[%clk 0:02:05]}  Qc6 {[%clk 0:00:48]} 24. Qh4 {[%clk 0:01:54]}  gxh5 {[%clk 0:00:43]} 25. Qxh5 {[%clk 0:01:47]}  Qg6 {[%clk 0:00:35]} 26. Qxc5 {[%clk 0:01:46]}  e5 {[%clk 0:00:35]} 27. Qd5 {[%clk 0:01:29]}  e4 {[%clk 0:00:28]} 28. Ng5 {[%clk 0:01:29]}  Re5 {[%clk 0:00:19]} 29. Qd8+ {[%clk 0:01:26]}  Bf8 {[%clk 0:00:18]} 30. Nxf7 {[%clk 0:01:12]}  Qxf7 {[%clk 0:00:14]} 31. Rxf7 {[%clk 0:01:11]}  Kxf7 {[%clk 0:00:15]} 32. Qc7+ {[%clk 0:01:10]}  Re7 {[%clk 0:00:15]} 33. Qf4+ {[%clk 0:01:10]}  Ke8 {[%clk 0:00:15]} 34. Kf1 {[%clk 0:01:09]}  e3 {[%clk 0:00:15]} 35. Ke2 {[%clk 0:01:09]}  Bg7 {[%clk 0:00:15]} 36. Qb8+ {[%clk 0:01:07]}  Kf7 {[%clk 0:00:15]} 37. Qc8 {[%clk 0:01:06]}  Bf6 {[%clk 0:00:15]} 38. g4 {[%clk 0:01:06]}  Bg5 {[%clk 0:00:14]} 39. Qf5+ {[%clk 0:01:05]} 1-0


[Site "https://www.chess.com"]

[Event "Titled Tuesday Blitz April 4 Early 2023"]
[White "Akhayan, Ruben"]
[Black "Tuleyeva-Aketayeva, Dana"]
[WhiteFideId "204439"]
[BlackFideId "13701932"]
[WhiteElo "2155"]
[BlackElo "2030"]
[Result "0-1"]
[Round "11"]
[TimeControl "180+2"]
[Date "2023.04.04"]
[WhiteClock "0:00:20"]
[BlackClock "0:00:17"]

1. d4 {[%clk 0:02:59]}  Nf6 {[%clk 0:02:59]} 2. Nf3 {[%clk 0:02:59]}  e6 {[%clk 0:02:59]} 3. Bg5 {[%clk 0:02:57]}  Be7 {[%clk 0:02:55]} 4. Nc3 {[%clk 0:02:49]}  O-O {[%clk 0:02:55]} 5. e4 {[%clk 0:02:49]}  d5 {[%clk 0:02:54]} 6. e5 {[%clk 0:02:49]}  Ne4 {[%clk 0:02:51]} 7. Bxe7 {[%clk 0:02:49]}  Qxe7 {[%clk 0:02:49]} 8. Bd3 {[%clk 0:02:49]}  Nxc3 {[%clk 0:02:35]} 9. bxc3 {[%clk 0:02:38]}  f5 {[%clk 0:02:34]} 10. exf6 {[%clk 0:02:36]}  Qxf6 {[%clk 0:02:30]} 11. O-O {[%clk 0:02:36]}  Nc6 {[%clk 0:02:25]} 12. Re1 {[%clk 0:02:36]}  Bd7 {[%clk 0:02:25]} 13. Qe2 {[%clk 0:02:33]}  Rae8 {[%clk 0:02:24]} 14. Ne5 {[%clk 0:02:30]}  Nxe5 {[%clk 0:02:23]} 15. dxe5 {[%clk 0:02:30]}  Qg5 {[%clk 0:02:17]} 16. Rab1 {[%clk 0:02:28]}  b6 {[%clk 0:02:14]} 17. Rb4 {[%clk 0:02:26]}  Rf4 {[%clk 0:02:08]} 18. g3 {[%clk 0:02:21]}  Ref8 {[%clk 0:01:47]} 19. Rxf4 {[%clk 0:01:50]}  Rxf4 {[%clk 0:01:46]} 20. Qe3 {[%clk 0:01:50]}  Rg4 {[%clk 0:01:46]} 21. f4 {[%clk 0:01:42]}  Qe7 {[%clk 0:01:42]} 22. h3 {[%clk 0:01:30]}  Rg6 {[%clk 0:01:42]} 23. Bxg6 {[%clk 0:01:29]}  hxg6 {[%clk 0:01:43]} 24. Kh2 {[%clk 0:01:22]}  Qa3 {[%clk 0:01:41]} 25. c4 {[%clk 0:01:17]}  Qxa2 {[%clk 0:01:26]} 26. cxd5 {[%clk 0:01:15]}  Qxd5 {[%clk 0:01:23]} 27. Qe4 {[%clk 0:00:59]}  Bc6 {[%clk 0:01:10]} 28. Qxd5 {[%clk 0:00:58]}  Bxd5 {[%clk 0:01:11]} 29. Ra1 {[%clk 0:00:56]}  a5 {[%clk 0:01:11]} 30. Kg1 {[%clk 0:00:56]}  Kf8 {[%clk 0:01:09]} 31. Kf2 {[%clk 0:00:57]}  Ke7 {[%clk 0:01:09]} 32. Ke3 {[%clk 0:00:58]}  Kd7 {[%clk 0:01:04]} 33. Kd3 {[%clk 0:00:58]}  Bg2 {[%clk 0:00:47]} 34. h4 {[%clk 0:00:57]}  Bh3 {[%clk 0:00:47]} 35. c4 {[%clk 0:00:56]}  Bf5+ {[%clk 0:00:46]} 36. Kc3 {[%clk 0:00:52]}  Bg4 {[%clk 0:00:39]} 37. c5 {[%clk 0:00:48]}  Kc6 {[%clk 0:00:37]} 38. cxb6 {[%clk 0:00:47]}  cxb6 {[%clk 0:00:38]} 39. Kc4 {[%clk 0:00:44]}  b5+ {[%clk 0:00:35]} 40. Kc3 {[%clk 0:00:44]}  b4+ {[%clk 0:00:33]} 41. Kb3 {[%clk 0:00:43]}  Kb5 {[%clk 0:00:32]} 42. Rc1 {[%clk 0:00:38]}  a4+ {[%clk 0:00:30]} 43. Kb2 {[%clk 0:00:38]}  a3+ {[%clk 0:00:29]} 44. Kb3 {[%clk 0:00:36]}  Bf3 {[%clk 0:00:27]} 45. Ka2 {[%clk 0:00:19]}  Bd5+ {[%clk 0:00:25]} 46. Ka1 {[%clk 0:00:19]}  b3 {[%clk 0:00:21]} 47. Rc3 {[%clk 0:00:20]}  b2+ {[%clk 0:00:18]} 48. Kb1 {[%clk 0:00:20]}  Be4+ {[%clk 0:00:17]} 0-1


[Site "https://www.chess.com"]